bitfinex/quotes_SOLUSD_20241019
["timestamp","ask_amount","ask_price","bid_price","bid_amount"]
[1729368218343,36.94294803,156.29,156.28,0.3411731]
[1729368222347,56.94294803,156.29,156.28,0.3411731]
[1729368222726,86.94294803,156.29,156.28,0.3411731]
[1729368224338,66.94294803,156.29,156.28,0.3411731]
[1729368225456,36.94294803,156.29,156.28,0.3411731]
[1729368232963,6.76776403,156.29,156.28,0.3411731]
[1729368233256,0.11728425,156.29,156.28,0.3411731]
[1729368236844,0.2465937,156.29,156.28,0.3411731]
[1729368238369,0.12930945,156.29,156.28,0.3411731]
[1729368244164,0.12930945,156.29,156.28,6.7398731]
[1729368248249,0.12930945,156.29,156.28,26.7398731]
[1729368256771,0.24540792,156.29,156.28,26.7398731]
[1729368258376,0.11609847,156.29,156.28,26.7398731]
[1729368258770,0.11609847,156.29,156.28,50.5167571]
[1729368269760,9.847e-05,156.29,156.28,50.5167571]
[1729368269990,4.495e-05,156.3,156.29,50.175184]
[1729368271859,4.495e-05,156.3,156.29,26.3983]
[1729368274990,4.495e-05,156.3,156.29,6.3983]
[1729368276267,4.495e-05,156.3,156.29,26.3983]
[1729368276996,0.11601204,156.3,156.29,26.3983]
[1729368278295,0.11596709,156.3,156.29,26.3983]
[1729368279180,0.11596709,156.3,156.29,6.3983]
[1729368296905,0.23815704,156.3,156.29,6.3983]
[1729368298304,0.12218995,156.3,156.29,6.3983]
[1729368310529,0.12218995,156.3,156.28,6.7397731]
[1729368315307,0.12218995,156.3,156.28,0.3411731]
[1729368315610,0.12218995,156.3,156.29,6.3983]
[1729368317211,0.12218995,156.3,156.29,26.3983]
[1729368318209,15.1996,156.34,156.29,20.0]
[1729368318514,15.1996,156.34,156.31,6.3971]
[1729368320911,23.10293503,156.37,156.32,6.3967]
[1729368321915,16.70783503,156.37,156.28,20.3411731]
[1729368322107,16.70783503,156.37,156.33,6.3964]
[1729368325316,10.66833503,156.37,156.33,6.3964]
[1729368332122,21.9333,156.38,156.33,6.3964]
[1729368351338,21.9333,156.38,156.34,6.3962]
[1729368352417,21.9333,156.38,156.33,6.3967]
[1729368359244,6.65623788,156.39,156.3,20.0]
[1729368359439,6.65623788,156.39,156.35,6.3955]
[1729368360138,6.65623788,156.39,156.3,20.0]
[1729368360348,6.65623788,156.39,156.35,6.3955]
[1729368361648,13.05053788,156.39,156.35,6.3955]
[1729368372439,6.65623788,156.39,156.35,6.3955]
[1729368390447,6.65623788,156.39,156.31,21.4797]
[1729368390663,6.65623788,156.39,156.36,6.3952]
[1729368393458,21.9472,156.42,156.32,43.776884]
[1729368411180,15.5541,156.42,156.32,43.776884]
[1729368411382,6.498,156.45,156.32,43.776884]
[1729368411583,6.498,156.45,156.34,43.776884]
[1729368411880,12.8902,156.45,156.34,49.75386903]
[1729368429194,6.498,156.45,156.34,49.75386903]
[1729368429396,16.5054,156.43,156.34,25.97698503]
[1729368429576,16.5054,156.43,156.34,5.97698503]
[1729368429884,6.3935,156.41,156.34,5.97698503]
[1729368430194,16.5054,156.43,156.34,5.97698503]
[1729368430373,6.3937,156.41,156.34,5.97698503]
[1729368431070,16.5054,156.43,156.34,5.97698503]
[1729368431679,6.3937,156.41,156.34,5.97698503]
[1729368433398,6.3937,156.41,156.36,6.3954]
[1729368439409,6.3939,156.4,156.36,6.3954]
[1729368440100,6.3939,156.4,156.34,5.97698503]
[1729368440996,6.3939,156.4,156.35,6.3958]
[1729368442198,16.5054,156.43,156.35,6.3958]
[1729368442396,6.3944,156.39,156.35,6.3958]
[1729368463591,6.3939,156.4,156.35,6.3958]
[1729368465713,6.3952,156.37,156.29,16.1555]
[1729368465916,59.509284,156.39,156.28,0.3411731]
[1729368466093,23.776884,156.37,156.3,6.3976]
[1729368466419,6.3959,156.35,156.3,6.3976]
[1729368469902,6.3955,156.36,156.31,6.3974]
[1729368470103,23.776884,156.37,156.28,0.3411731]
[1729368470300,23.776884,156.38,156.32,6.3967]
[1729368470503,6.3952,156.37,156.32,6.3967]
[1729368483512,23.776884,156.38,156.31,6.3974]
[1729368483712,6.3957,156.36,156.31,6.3974]
[1729368483912,6.3957,156.36,156.28,6.8099731]
[1729368484121,6.3957,156.36,156.32,6.397]
[1729368485028,6.3957,156.36,156.28,6.8099731]
[1729368485211,6.3962,156.35,156.29,6.3983]
[1729368485410,6.3962,156.35,156.28,0.3411731]
[1729368486435,6.3966,156.34,156.29,6.3983]
[1729368486730,6.3968,156.33,156.29,6.3983]
[1729368487412,6.65824498,156.34,156.28,0.3411731]
[1729368487413,6.3971,156.32,156.28,0.3411731]
[1729368493834,25.84824498,156.34,156.28,0.3411731]
[1729368494034,6.3976,156.31,156.28,0.3411731]
[1729368494235,6.3981,156.3,156.28,0.3411731]
[1729368495643,6.3975,156.31,156.28,0.3411731]
[1729368506049,6.3982,156.3,156.28,0.3411731]
[1729368506248,6.3983,156.29,156.28,0.3411731]
[1729368516853,13.05816224,156.3,156.28,0.3411731]
[1729368517747,6.66016224,156.3,156.28,0.3411731]
[1729368526243,13.05836224,156.3,156.28,0.3411731]
[1729368531936,30.175184,156.29,156.28,0.3411731]
[1729368550714,13.05816224,156.3,156.28,0.3411731]
[1729368563695,30.175184,156.29,156.28,0.3411731]
[1729368584915,23.776884,156.29,156.28,0.3411731]
[1729368596527,42.966884,156.29,156.28,0.3411731]
[1729368596702,23.776884,156.29,156.28,0.3411731]
[1729368603939,30.175184,156.29,156.28,0.3411731]
[1729368604121,50.175184,156.29,156.28,0.3411731]
[1729368614342,50.175184,156.29,156.18,15.9076]
[1729368614343,101.48558228,156.29,156.18,15.9076]
[1729368614537,6.4006,156.24,156.19,6.4024]
[1729368614748,20.0,156.23,156.19,6.4024]
[1729368617039,23.776884,156.22,156.18,22.3104]
[1729368619849,30.178084,156.22,156.18,22.3104]
[1729368625052,30.178084,156.22,156.18,22.3104]
[1729368633952,34.92490436,156.22,156.13,0.6297015]
[1729368634147,23.776884,156.2,156.16,6.4035]
[1729368637062,6.4029,156.18,156.13,7.0345015]
[1729368637258,23.776884,156.17,156.13,7.0345015]
[1729368638755,23.776884,156.2,156.14,6.4045]
[1729368638945,23.776884,156.2,156.13,0.6297015]
[1729368639150,23.776884,156.2,156.15,6.404]
[1729368644865,23.776884,156.2,156.13,0.6297015]
[1729368645868,23.776884,156.2,156.15,6.4038]
[1729368650058,30.178984,156.2,156.15,6.4038]
[1729368668057,6.4021,156.2,156.15,6.4038]
[1729368668262,6.66138054,156.21,156.13,20.6297015]
[1729368668596,11.14802036,156.22,156.13,20.6297015]
[1729368669173,17.54932036,156.22,156.17,6.4029]
[1729368669369,11.14802036,156.22,156.18,6.4025]
[1729368669678,15.1151,156.28,156.15,59.576884]
[1729368669873,21.5139,156.28,156.23,6.4007]
[1729368670083,28.17624361,156.28,156.23,6.4007]
[1729368671185,23.776884,156.27,156.24,6.4]
[1729368671386,11.11405007,156.28,156.21,15.8]
[1729368671560,11.11405007,156.28,156.27,6.3991]
[1729368673160,6.3971,156.32,156.27,6.3991]
[1729368674387,20.0,156.32,156.21,15.8]
[1729368674565,6.66450754,156.33,156.16,7.99444926]
[1729368674774,20.0,156.35,156.3,6.3978]
[1729368674966,13.05987771,156.36,156.31,6.3974]
[1729368676388,20.0,156.35,156.31,6.3974]
[1729368684293,26.3959,156.35,156.28,15.8]
[1729368684674,26.3959,156.35,156.3,6.3977]
[1729368685109,30.0,156.31,156.3,6.3977]
[1729368685292,26.3959,156.35,156.3,6.3977]
[1729368688502,30.0,156.31,156.3,6.3977]
[1729368696205,26.3959,156.35,156.3,6.3977]
[1729368699404,30.0,156.31,156.3,6.3977]
[1729368704000,30.0,156.31,156.28,15.8]
[1729368704203,30.0,156.31,156.3,6.3979]
[1729368705086,6.3959,156.35,156.31,6.3974]
[1729368705288,30.0,156.32,156.31,6.3974]
[1729368705696,6.3959,156.35,156.31,6.3974]
[1729368706204,20.0,156.35,156.31,6.3974]
[1729368706602,6.66447771,156.36,156.32,6.3969]
[1729368706809,6.3951,156.37,156.32,6.3969]
[1729368717288,13.0608385,156.37,156.32,6.3969]
[1729368726626,6.3955,156.36,156.32,6.3969]
[1729368734319,6.6657385,156.37,156.32,6.3969]
[1729368735426,6.3955,156.36,156.32,6.3969]
[1729368744234,6.6657385,156.37,156.33,6.3966]
[1729368744411,1.11231409,156.39,156.33,6.3966]
[1729368744412,6.3947,156.38,156.33,6.3966]
[1729368767850,6.3947,156.38,156.28,30.87399578]
[1729368768057,6.6660874,156.4,156.37,6.395]
[1729368768247,30.0,156.38,156.37,6.395]
[1729368768774,13.05782095,156.43,156.38,6.3946]
[1729368778259,6.393,156.42,156.38,6.3946]
[1729368780563,6.3934,156.42,156.36,6.3951]
[1729368780760,6.66512095,156.43,156.36,6.3951]
[1729368781056,6.3935,156.41,156.36,6.3951]
[1729368784464,6.66512095,156.43,156.36,6.3951]
[1729368784637,6.3937,156.41,156.36,6.3951]
[1729368804288,6.66503031,156.42,156.33,6.1511]
[1729368804465,6.393,156.42,156.37,6.3947]
[1729368805071,6.3926,156.43,156.39,6.3942]
[1729368806172,12.25769484,156.44,156.4,6.3937]
[1729368806689,12.25769484,156.44,156.4,6.3934]
[1729368806894,12.25769484,156.44,156.42,6.3929]
[1729368813770,6.3914,156.46,156.42,6.3929]
[1729368813978,6.6684746,156.47,156.42,6.3929]
[1729368814188,13.0594746,156.47,156.42,6.3929]
[1729368833401,21.8907,156.48,156.43,6.3923]
[1729368835104,6.66485585,156.49,156.39,16.3131]
[1729368835407,13.05505585,156.49,156.44,6.392]
[1729368836506,6.66485585,156.49,156.45,6.3917]
[1729368841985,6.66485585,156.49,156.39,16.3131]
[1729368842193,13.05535585,156.49,156.44,6.392]
[1729368857419,13.05535585,156.49,156.39,16.3131]
[1729368857616,13.05535585,156.49,156.45,6.3916]
[1729368881951,13.05535585,156.49,156.45,6.3916]
[1729368899665,43.776884,156.48,156.39,16.3131]
[1729368899848,16.1982,156.47,156.37,6.6042]
[1729368900163,6.392,156.45,156.41,6.3934]
[1729368900353,13.05814566,156.46,156.41,6.3934]
[1729368901258,6.66674566,156.46,156.43,6.3922]
[1729368901443,20.0,156.48,156.43,6.3922]
[1729368902052,13.05654556,156.49,156.44,6.3919]
[1729368902247,6.66604556,156.49,156.4,16.0484]
[1729368902548,6.66604556,156.49,156.44,6.3918]
[1729368904268,6.66604556,156.49,156.45,6.3916]
[1729368907760,13.05624556,156.49,156.45,6.3916]
[1729368908065,6.3907,156.48,156.44,6.3921]
[1729368908655,13.05624556,156.49,156.44,6.3921]
[1729368918686,6.66604556,156.49,156.45,6.3914]
[1729368932995,6.66604556,156.49,156.41,6.4593]
[1729368933190,6.66604556,156.49,156.46,6.3913]
[1729368936298,6.66604556,156.49,156.41,6.4593]
[1729368936484,6.66604556,156.49,156.46,6.3913]
[1729368937677,6.66604556,156.49,156.41,6.4593]
[1729368938490,6.66604556,156.49,156.46,6.3911]
[1729368946693,6.389,156.52,156.47,6.3906]
[1729368952997,20.0,156.51,156.42,15.6684]
[1729368953204,6.3898,156.5,156.46,6.3913]
[1729368957324,13.05370369,156.5,156.46,6.3913]
[1729368960430,26.3905,156.49,156.42,15.6684]
[1729368960593,26.3905,156.49,156.45,6.3917]
[1729368962411,20.0,156.49,156.45,6.3917]
[1729368965523,13.05370369,156.5,156.45,6.3917]
[1729368965724,20.0,156.49,156.45,6.3917]
[1729368967802,6.3898,156.5,156.42,15.6684]
[1729368968012,6.3898,156.5,156.46,6.3913]
[1729368975927,6.3898,156.5,156.42,15.6684]
[1729368976235,6.3898,156.5,156.45,6.3918]
[1729368977030,6.3898,156.5,156.42,15.6684]
[1729368977225,6.3898,156.5,156.46,6.3913]
[1729368990945,43.776884,156.5,156.46,6.3913]
[1729368991442,6.66713725,156.51,156.42,15.6684]
[1729368991641,25.5888,156.53,156.47,6.3906]
[1729368991945,50.165784,156.52,156.47,6.3906]
[1729368993338,50.165784,156.52,156.48,6.3904]
[1729369000847,69.365784,156.52,156.48,6.3904]
[1729369001068,50.165784,156.52,156.48,6.3904]
[1729369002526,6.66658274,156.51,156.48,6.3904]
[1729369008442,26.3885,156.53,156.49,6.3901]
[1729369018161,20.0,156.51,156.42,15.6684]
[1729369018354,6.3898,156.5,156.45,6.3914]
[1729369018542,26.3893,156.51,156.46,6.3913]
[1729369019913,20.0,156.51,156.42,15.6684]
[1729369020182,20.0,156.51,156.47,6.3907]
[1729369022689,20.0,156.51,156.42,15.6684]
[1729369022990,26.3886,156.53,156.48,6.3905]
[1729369054313,20.0,156.53,156.49,6.39]
[1729369071501,6.6646851,156.52,156.49,6.39]
[1729369078328,6.3897,156.51,156.46,6.3911]
[1729369079211,6.3897,156.51,156.42,20.0]
[1729369079411,6.3897,156.51,156.47,6.3909]
[1729369083325,25.5697,156.51,156.47,6.3909]
[1729369083531,6.3897,156.51,156.47,6.3909]
[1729369084030,43.776884,156.51,156.47,6.3909]
[1729369086730,50.166284,156.51,156.47,6.3909]
[1729369088434,20.0,156.51,156.47,6.3909]
[1729369111347,6.6646851,156.52,156.49,6.3901]
[1729369111550,18.80587209,156.55,156.5,6.3894]
[1729369111551,6.3877,156.55,156.5,6.3894]
[1729369112744,20.0,156.54,156.5,6.3894]
[1729369116250,6.65364598,156.56,156.55,6.3877]
[1729369116458,1.11107244,156.59,156.55,6.3877]
[1729369116649,6.3857,156.6,156.55,6.3877]
[1729369116844,6.66201061,156.59,156.55,6.3877]
[1729369117775,20.0,156.58,156.55,6.3877]
[1729369118561,20.0,156.58,156.56,6.3873]
[1729369123645,6.66201061,156.59,156.56,6.3873]
[1729369123957,13.04990305,156.61,156.56,6.3873]
[1729369124158,20.0,156.6,156.56,6.3873]
[1729369125863,20.0,156.58,156.52,6.3889]
[1729369126068,20.0,156.58,156.51,15.7783]
[1729369126069,6.387,156.57,156.53,6.3884]
[1729369126443,6.3874,156.56,156.51,15.7783]
[1729369126650,6.3869,156.57,156.52,6.3889]
[1729369126844,6.3885,156.53,156.48,6.3905]
[1729369127451,6.3885,156.53,156.49,6.3901]
[1729369127855,6.3881,156.54,156.49,6.3901]
[1729369130060,43.776884,156.56,156.45,8.81141371]
[1729369130270,20.0,156.52,156.48,6.3905]
[1729369130858,30.0,156.51,156.48,6.3905]
[1729369132573,30.0,156.51,156.45,8.81141371]
[1729369135773,20.0,156.5,156.45,8.81141371]
[1729369136079,26.3901,156.5,156.45,15.20321371]
[1729369137458,30.0,156.49,156.45,15.20321371]
[1729369138373,30.0,156.49,156.45,8.81141371]
[1729369138560,20.0,156.51,156.47,6.3906]
[1729369152385,22.01025767,156.53,156.45,8.81141371]
[1729369152596,26.389,156.52,156.47,6.3908]
[1729369184703,20.0,156.53,156.44,6.5899]
[1729369184906,43.776884,156.53,156.44,6.5899]
[1729369185108,50.165784,156.53,156.44,6.5899]
[1729369185291,50.165784,156.53,156.47,6.3907]
[1729369186303,43.776884,156.53,156.47,6.3907]
[1729369186509,6.3889,156.52,156.47,6.3907]
[1729369217943,6.3894,156.51,156.47,6.3907]
[1729369218158,59.121484,156.53,156.43,15.827]
[1729369218446,26.39,156.5,156.43,15.827]
[1729369220457,26.39,156.5,156.45,6.3914]
[1729369222052,20.0,156.5,156.43,15.827]
[1729369222357,26.3898,156.5,156.45,6.3917]
[1729369230740,23.776884,156.49,156.39,15.0443]
[1729369230938,6.3913,156.47,156.42,6.393]
[1729369231739,6.3913,156.47,156.39,15.0443]
[1729369231954,30.0,156.46,156.42,6.3926]
[1729369236548,6.3918,156.45,156.4,6.3938]
[1729369236752,36.3914,156.46,156.41,6.3933]
[1729369237055,36.3914,156.46,156.42,6.3929]
[1729369237240,30.0,156.46,156.42,6.3929]
[1729369246969,20.0,156.46,156.42,6.3929]
[1729369248041,19.87065133,156.51,156.39,15.0443]
[1729369248244,12.25170701,156.51,156.47,6.3906]
[1729369248450,12.25170701,156.51,156.4,6.6563]
[1729369248451,18.64110701,156.51,156.4,6.6563]
[1729369248808,18.64110701,156.51,156.45,6.3915]
[1729369249852,26.3897,156.5,156.45,6.3915]
[1729369251381,20.0,156.5,156.46,6.391]
[1729369251576,12.25170701,156.51,156.41,59.904684]
[1729369252579,12.25170701,156.51,156.48,6.3905]
[1729369264302,12.25170701,156.51,156.41,59.904684]
[1729369266190,12.25170701,156.51,156.46,6.391]
[1729369269378,12.25170701,156.51,156.47,6.3908]
[1729369289214,26.3886,156.53,156.49,6.3901]
[1729369289508,26.3886,156.53,156.48,6.3905]
[1729369293504,26.3881,156.54,156.42,21.8972]
[1729369293716,26.3881,156.54,156.43,43.776884]
[1729369297698,26.3881,156.54,156.45,20.0]
[1729369306223,6.3865,156.58,156.48,16.5687]
[1729369307211,20.0,156.57,156.48,16.5687]
[1729369311350,20.0,156.58,156.48,16.5687]
[1729369311827,26.3865,156.58,156.48,16.5687]
[1729369315338,20.0,156.58,156.48,16.5687]
[1729369315533,12.5016,156.59,156.48,16.5687]
[1729369315739,12.5016,156.59,156.49,20.0]
[1729369317219,31.6816,156.59,156.49,20.0]
[1729369317423,12.5016,156.59,156.49,20.0]
[1729369333154,6.1153,156.59,156.49,20.0]
[1729369333657,12.5014,156.59,156.49,20.0]
[1729369342850,6.1153,156.59,156.49,20.0]
[1729369350771,6.1153,156.59,156.5,23.776884]
[1729369351168,20.0,156.59,156.5,23.776884]
[1729369351356,16.0515,156.6,156.51,20.0]
[1729369362577,6.3792,156.63,156.53,20.0]
[1729369366055,16.6283,156.64,156.55,20.0]
[1729369366882,16.6283,156.64,156.54,25.05392133]
[1729369367281,16.6283,156.64,156.55,20.0]
[1729369371081,23.0126,156.64,156.55,20.0]
[1729369372182,23.0124,156.64,156.55,20.0]
[1729369373391,16.6283,156.64,156.55,20.0]
[1729369373787,23.0123,156.64,156.55,20.0]
[1729369375595,26.3845,156.63,156.52,21.3312]
[1729369375796,6.385,156.62,156.53,23.776884]
[1729369376175,20.0,156.63,156.53,23.776884]
[1729369376574,26.3845,156.63,156.53,23.776884]
[1729369378771,33.05147892,156.63,156.53,23.776884]
[1729369384499,6.386,156.6,156.53,20.0]
[1729369384801,6.2274,156.62,156.53,20.0]
[1729369385095,6.3853,156.61,156.53,20.0]
[1729369388387,6.3853,156.61,156.52,15.1698]
[1729369390002,16.2373,156.6,156.49,43.776884]
[1729369390297,20.0,156.59,156.49,20.0]
[1729369390478,26.66882073,156.59,156.48,22.8695]
[1729369390674,6.3865,156.58,156.48,22.8695]
[1729369391714,6.3865,156.58,156.49,20.0]
[1729369391888,33.05522073,156.59,156.49,20.0]
[1729369392702,26.66882073,156.59,156.5,23.776884]
[1729369392877,22.623,156.6,156.51,20.0]
[1729369395006,6.3865,156.58,156.48,22.8695]
[1729369395204,6.3865,156.58,156.49,20.0]
[1729369400005,20.0,156.59,156.49,20.0]
[1729369402001,26.3861,156.59,156.49,20.0]
[1729369405006,22.623,156.6,156.51,20.0]
[1729369413614,20.0,156.59,156.49,23.776884]
[1729369413812,20.0,156.59,156.5,20.0]
[1729369419123,26.3864,156.59,156.5,20.0]
[1729369438039,20.0,156.59,156.5,20.0]
[1729369442736,29.29144022,156.6,156.5,20.0]
[1729369443266,20.0,156.59,156.5,20.0]
[1729369446363,6.3873,156.56,156.48,16.4563]
[1729369446659,6.3873,156.56,156.44,21.7785]
[1729369447035,6.3865,156.58,156.44,21.7785]
[1729369447857,6.3865,156.58,156.46,23.776884]
[1729369448044,6.3865,156.58,156.47,20.0]
[1729369448244,6.3872,156.57,156.47,20.0]
[1729369448439,20.0,156.57,156.45,8.80919004]
[1729369448643,6.3873,156.56,156.46,23.776884]
[1729369449544,6.3873,156.56,156.45,8.80919004]
[1729369449745,6.3873,156.56,156.46,20.0]
[1729369455765,20.0,156.57,156.47,23.776884]
[1729369455943,26.387,156.57,156.47,23.776884]
[1729369456364,26.387,156.57,156.48,20.0]
[1729369475384,6.387,156.57,156.48,20.0]
[1729369481289,20.0,156.56,156.45,8.80919004]
[1729369481519,35.3244,156.54,156.45,8.80919004]
[1729369482368,41.7128,156.54,156.45,8.80919004]
[1729369484083,35.3244,156.54,156.45,8.80919004]
[1729369484467,20.0,156.57,156.46,43.776884]
[1729369484667,28.66485092,156.58,156.46,43.776884]
[1729369484867,35.05135092,156.58,156.46,43.776884]
[1729369487483,28.66485092,156.58,156.46,43.776884]
[1729369488597,28.66485092,156.58,156.48,43.776884]
[1729369508706,6.3848,156.63,156.5,43.776884]
[1729369510204,20.0,156.62,156.5,43.776884]
[1729369510599,22.0114,156.64,156.52,43.776884]
[1729369512799,22.0114,156.64,156.53,1.27710462]
[1729369513004,22.0114,156.64,156.54,23.776884]
[1729369513189,22.0114,156.64,156.57,20.0]
[1729369515118,20.0,156.63,156.51,16.5398]
[1729369516313,20.0,156.63,156.54,20.0]
[1729369523997,6.385,156.62,156.52,20.0]
[1729369524421,13.05002804,156.62,156.52,20.0]
[1729369531221,6.3854,156.61,156.52,20.0]
[1729369531527,6.3856,156.61,156.52,20.0]
[1729369535915,20.0,156.6,156.51,16.5398]
[1729369536807,6.3864,156.59,156.51,16.5398]
[1729369537012,20.0,156.59,156.5,43.776884]
[1729369537305,32.7905,156.59,156.5,20.0]
[1729369537829,32.7905,156.59,156.48,43.776884]
[1729369540608,26.4043,156.59,156.48,43.776884]
[1729369541230,16.3134,156.6,156.48,43.776884]
[1729369546906,16.3134,156.6,156.5,43.776884]
[1729369547110,18.57733675,156.63,156.52,43.776884]
[1729369547311,12.17303675,156.63,156.54,43.776884]
[1729369553226,18.55783675,156.63,156.52,20.0]
[1729369553425,6.6366,156.62,156.53,23.776884]
[1729369556925,6.6366,156.62,156.52,20.0]
[1729369557127,13.0216,156.62,156.52,20.0]
[1729369564646,13.0216,156.62,156.51,16.642]
[1729369564828,13.0216,156.62,156.52,23.776884]
[1729369565135,13.0215,156.62,156.52,23.776884]
[1729369573057,6.6366,156.62,156.52,23.776884]
[1729369573560,6.6366,156.62,156.53,20.0]
[1729369573762,12.17303675,156.63,156.54,23.776884]
[1729369577447,12.17303675,156.63,156.54,29.887384]
[1729369577836,12.17303675,156.63,156.55,20.0]
[1729369578663,12.17303675,156.63,156.56,23.776884]
[1729369580745,15.2906,156.64,156.56,23.776884]
[1729369585644,21.6746,156.64,156.56,23.776884]
[1729369585844,6.3847,156.63,156.51,24.94970613]
[1729369586064,20.0,156.62,156.51,24.94970613]
[1729369587360,20.0,156.62,156.53,23.776884]
[1729369616462,6.66523953,156.63,156.54,20.0]
[1729369616667,26.2244565,156.64,156.56,20.0]
[1729369617288,26.2244565,156.64,156.54,20.0]
[1729369617782,26.2244565,156.64,156.55,20.0]
[1729369618175,13.07249715,156.66,156.57,20.0]
[1729369618474,6.4072,156.66,156.58,23.776884]
[1729369620458,20.6297015,156.67,156.58,23.776884]
[1729369637069,0.6297015,156.67,156.59,20.0]
[1729369641092,0.6297015,156.67,156.58,23.776884]
[1729369641281,0.6297015,156.67,156.59,20.0]
[1729369674733,0.6297015,156.67,156.6,40.240184]
[1729369678929,0.6297015,156.67,156.61,20.0]
[1729369681440,0.6297015,156.67,156.6,40.240184]
[1729369681811,0.6297015,156.67,156.61,20.0]
[1729369689239,0.6297015,156.67,156.61,20.0]
[1729369710132,0.6297015,156.67,156.61,20.0]
[1729369710749,0.6297015,156.67,156.62,23.776884]
[1729369719857,0.6297015,156.67,156.61,20.0]
[1729369723443,0.6297015,156.67,156.59,20.0]
[1729369723753,0.6297015,156.67,156.6,23.776884]
[1729369723964,0.6297015,156.67,156.61,20.0]
[1729369731269,0.6297015,156.67,156.62,23.776884]
[1729369731468,0.6297015,156.67,156.65,20.0]
[1729369731647,0.6297015,156.67,156.66,23.776884]
[1729369732547,0.6297015,156.67,156.66,43.776884]
[1729369741062,0.6297015,156.67,156.64,20.0]
[1729369741268,0.6297015,156.67,156.63,7.59441193]
[1729369744195,0.6297015,156.67,156.65,20.0]
[1729369751882,0.6297015,156.67,156.63,7.59441193]
[1729369759875,0.6297015,156.67,156.63,7.56594278]
[1729369773695,0.6297015,156.67,156.59,43.776884]
[1729369807599,15.6943015,156.67,156.59,43.776884]
[1729369808822,15.6943015,156.67,156.59,23.776884]
[1729369810215,15.6943015,156.67,156.6,20.0]
[1729369828831,0.6297015,156.67,156.62,20.0]
[1729369865759,0.6297015,156.67,156.63,23.776884]
[1729369865966,0.6297015,156.67,156.64,20.0]
[1729369866454,0.6297015,156.67,156.63,23.776884]
[1729369866838,0.6297015,156.67,156.66,20.0]
[1729369867047,0.6297015,156.67,156.66,43.776884]
[1729369896891,1.5e-06,156.67,156.66,43.776884]
[1729369932109,16.2256,156.75,156.69,23.776884]
[1729369932311,16.2256,156.75,156.71,23.776884]
[1729369933688,6.1533,156.74,156.69,20.0]
[1729369951701,6.1533,156.74,156.66,6.65707044]
[1729369952201,6.1533,156.74,156.62,22.23456193]
[1729369953028,6.1533,156.74,156.63,20.0]
[1729369953226,6.1533,156.74,156.66,23.776884]
[1729369953403,6.1533,156.74,156.67,20.0]
[1729369982940,6.1533,156.74,156.68,23.776884]
[1729370004958,6.1533,156.74,156.63,20.0]
[1729370005160,6.3808,156.72,156.63,20.0]
[1729370005458,6.1533,156.74,156.62,35.86408875]
[1729370005459,12.5336,156.74,156.62,35.86408875]
[1729370005631,20.0,156.73,156.62,35.86408875]
[1729370006433,20.0,156.73,156.63,23.776884]
[1729370007038,20.0,156.73,156.64,20.0]
[1729370007340,20.0,156.73,156.65,23.776884]
[1729370010336,26.3805,156.73,156.63,20.0]
[1729370010655,22.8289,156.72,156.63,23.776884]
[1729370022446,6.1533,156.74,156.65,23.776884]
[1729370022647,6.1533,156.74,156.67,23.776884]
[1729370040950,6.1533,156.74,156.66,20.0]
[1729370041148,6.1533,156.74,156.65,23.776884]
[1729370045700,6.378,156.79,156.69,23.776884]
[1729370046105,6.65701163,156.79,156.69,23.776884]
[1729370046903,6.3783,156.78,156.67,23.776884]
[1729370047703,20.0,156.77,156.67,23.776884]
[1729370048686,6.3783,156.78,156.67,23.776884]
[1729370049291,20.0,156.77,156.67,23.776884]